bitfinex/quotes_BTCUSD_20220226
["timestamp","ask_amount","ask_price","bid_price","bid_amount"]
[1645837311914,0.27629,39777.0,39771.0,0.02512]
[1645837312110,0.27629,39777.0,39773.0,0.01629773]
[1645837312456,0.27629,39777.0,39774.0,0.01240806]
[1645837313055,0.27629,39777.0,39775.0,0.01435148]
[1645837314457,0.27629,39777.0,39775.0,0.01535148]
[1645837315662,0.27629,39777.0,39775.0,0.84402448]
[1645837315959,0.27629,39777.0,39776.0,0.0163242]
[1645837316215,0.27629,39777.0,39776.0,0.84092]
[1645837316420,5.68e-06,39777.0,39776.0,0.88822]
[1645837316614,5.68e-06,39777.0,39776.0,0.93822]
[1645837316815,0.00010236,39783.0,39782.0,0.79092]
[1645837317013,0.00010236,39783.0,39782.0,0.8121]
[1645837317212,0.00010236,39783.0,39782.0,0.9121]
[1645837317613,0.031679,39786.0,39782.0,0.1463]
[1645837318014,0.00010237,39784.0,39782.0,0.1463]
[1645837318615,0.00010237,39784.0,39781.0,0.0999]
[1645837318817,0.032679,39786.0,39781.0,0.0999]
[1645837318818,0.17887619,39785.0,39781.0,0.0999]
[1645837319217,0.00010785,39785.0,39781.0,0.0999]
[1645837320060,0.031679,39786.0,39781.0,0.0999]
[1645837320370,0.0003572,39785.0,39781.0,0.0999]
[1645837320560,0.0003572,39785.0,39782.0,0.05]
[1645837321361,0.031679,39786.0,39782.0,0.05]
[1645837321565,0.0003572,39785.0,39782.0,0.175719]
[1645837321764,0.0003572,39785.0,39782.0,0.941519]
[1645837321963,0.0003572,39785.0,39782.0,0.175719]
[1645837322565,0.031679,39786.0,39782.0,0.176719]
[1645837322866,0.0003572,39785.0,39782.0,0.176719]
[1645837323465,0.0003572,39785.0,39782.0,0.126719]
[1645837323704,0.031679,39786.0,39782.0,0.001]
[1645837323904,0.00010784,39785.0,39781.0,0.0999]
[1645837324905,0.031679,39786.0,39781.0,0.0999]
[1645837325204,0.031679,39786.0,39782.0,0.05]
[1645837325205,0.0003572,39785.0,39782.0,0.05]
[1645837326007,0.031679,39786.0,39782.0,0.05]
[1645837326205,0.031679,39786.0,39782.0,0.175722]
[1645837326407,0.00142859,39791.0,39784.0,0.85]
[1645837326612,0.00142859,39791.0,39785.0,0.82666808]
[1645837326811,0.00142859,39791.0,39786.0,0.853758]
[1645837327009,0.0022,39797.0,39791.0,0.7658]
[1645837327207,0.0022,39797.0,39793.0,0.01546163]
[1645837327492,0.0022,39797.0,39794.0,0.0463]
[1645837328675,0.07713836,39793.0,39791.0,0.22567]
[1645837328879,0.07713836,39793.0,39791.0,0.12567]
[1645837329078,0.07713836,39793.0,39790.0,0.0999]
[1645837329279,0.07713836,39793.0,39789.0,0.00135825]
[1645837329577,0.07713836,39793.0,39789.0,0.001]
[1645837329776,0.07713836,39793.0,39786.0,0.062861]
[1645837329977,0.0774911,39793.0,39789.0,0.00046408]
[1645837330377,0.20240813,39792.0,39789.0,0.00046408]
[1645837330575,0.0774911,39793.0,39789.0,0.00046408]
[1645837330576,0.0774911,39793.0,39789.0,0.00146408]
[1645837330776,0.07713836,39793.0,39789.0,0.001]
[1645837331201,0.07713836,39793.0,39789.0,0.00135837]
[1645837331906,0.07713836,39793.0,39789.0,0.00035837]
[1645837332104,0.07713836,39793.0,39786.0,0.062861]
[1645837332303,0.07713836,39793.0,39789.0,0.00035837]
[1645837333305,0.07713836,39793.0,39786.0,0.062861]
[1645837333504,0.07713836,39793.0,39789.0,0.00035837]
[1645837334104,0.17713836,39793.0,39789.0,0.00035837]
[1645837334304,0.07713836,39793.0,39789.0,0.00035837]
[1645837334509,0.07713836,39793.0,39786.0,0.062861]
[1645837334704,0.0774915,39793.0,39789.0,0.0004642]
[1645837335759,0.07713836,39793.0,39786.0,0.062861]
[1645837335957,0.0774915,39793.0,39789.0,0.0004642]
[1645837336355,0.0774915,39793.0,39792.0,0.05]
[1645837336554,0.0774915,39793.0,39789.0,0.0014642]
[1645837336954,0.07713836,39793.0,39789.0,0.001]
[1645837337158,0.07713836,39793.0,39789.0,0.00146421]
[1645837337755,0.07713836,39793.0,39789.0,0.00046421]
[1645837337956,0.07713836,39793.0,39790.0,0.7658]
[1645837338358,0.0772443,39793.0,39791.0,0.7658]
[1645837338558,0.0772443,39793.0,39792.0,0.7658]
[1645837338819,0.0772443,39793.0,39792.0,0.8121]
[1645837339018,0.0011,39796.0,39794.0,0.7658]
[1645837339219,0.06902515,39799.0,39793.0,0.062839]
[1645837339418,0.00010594,39794.0,39793.0,0.062839]
[1645837339821,0.04413109,39799.0,39793.0,0.062839]
[1645837340018,0.04413109,39799.0,39786.0,0.625675]
[1645837340220,0.03913109,39799.0,39791.0,0.0463]
[1645837340618,0.03913109,39799.0,39793.0,0.062839]
[1645837342692,0.04013109,39799.0,39793.0,0.062839]
[1645837343096,0.00010586,39798.0,39793.0,0.062839]
[1645837344093,0.04013109,39799.0,39793.0,0.062839]
[1645837344296,0.00035261,39797.0,39793.0,0.062839]
[1645837344497,0.00035261,39797.0,39793.0,0.109139]
[1645837344694,0.00035261,39797.0,39793.0,0.209139]
[1645837345296,0.03913109,39799.0,39793.0,0.209139]
[1645837345496,0.00035261,39797.0,39793.0,0.209139]
[1645837346512,0.03913109,39799.0,39793.0,0.209139]
[1645837346709,0.00035261,39797.0,39793.0,0.062839]
[1645837347812,0.03913109,39799.0,39793.0,0.062839]
[1645837348010,0.00035261,39797.0,39793.0,0.062839]
[1645837348910,0.03913109,39799.0,39793.0,0.062839]
[1645837349110,0.00035261,39797.0,39793.0,0.062839]
[1645837349960,0.00035261,39797.0,39794.0,0.125672]
[1645837350162,0.03913109,39799.0,39795.0,0.05]
[1645837350366,0.00035261,39797.0,39795.0,0.12512]
[1645837350566,0.001,39801.0,39798.0,0.7658]
[1645837350763,0.001,39801.0,39800.0,0.8658]
[1645837350962,0.00251019,39804.0,39801.0,1.6158]
[1645837351163,0.00251019,39804.0,39800.0,0.1]
[1645837351360,0.0011,39804.0,39800.0,0.1]
[1645837351561,0.0011,39804.0,39801.0,0.7658]
[1645837351760,0.0011,39804.0,39801.0,0.8158]
[1645837351961,0.0011,39804.0,39801.0,0.05]
[1645837352363,0.0011,39804.0,39799.0,0.1463]
[1645837352563,0.0011,39804.0,39799.0,0.159123]
[1645837352763,0.0011,39804.0,39800.0,0.05]
[1645837353811,0.001,39807.0,39802.0,0.7658]
[1645837353812,0.0004,39806.0,39802.0,0.7658]
[1645837354018,0.21176577,39812.0,39802.0,0.7658]
[1645837354019,0.21176577,39816.0,39804.0,1.04082]
[1645837354217,0.0021,39817.0,39806.0,0.79092]
[1645837354412,0.0021,39817.0,39808.0,0.79092]
[1645837354613,0.001,39819.0,39814.0,0.7658]
[1645837354915,0.001,39819.0,39815.0,0.7658]
[1645837355112,0.001,39819.0,39816.0,0.05]
[1645837355314,0.49911605,39814.0,39813.0,0.125598]
[1645837356015,0.68242886,39814.0,39813.0,0.125598]
[1645837356214,0.49911605,39814.0,39813.0,0.125598]
[1645837356913,0.49911605,39814.0,39808.0,0.001]
[1645837357113,0.49911605,39814.0,39809.0,0.062824]
[1645837357761,0.17152497,39813.0,39809.0,0.062824]
[1645837357962,0.00010606,39813.0,39809.0,0.062824]
[1645837358561,0.49911605,39814.0,39809.0,0.063824]
[1645837358763,0.00035173,39813.0,39809.0,0.063824]
[1645837358967,0.00035173,39813.0,39809.0,0.001]
[1645837359164,0.2121175,39813.0,39809.0,0.001]
[1645837359663,0.21176577,39812.0,39809.0,0.001]
[1645837359961,0.16907709,39811.0,39801.0,0.6]
[1645837360561,0.16907709,39811.0,39801.0,0.725657]
[1645837360960,0.16907709,39811.0,39801.0,0.225657]
[1645837361213,0.19185624,39805.0,39801.0,0.125657]
[1645837361418,0.49911605,39814.0,39802.0,0.7658]
[1645837361614,0.49911605,39814.0,39801.0,0.125657]
[1645837362414,0.22565621,39806.0,39801.0,0.125657]
[1645837363614,0.00035212,39805.0,39801.0,0.125657]
[1645837364416,0.00035212,39805.0,39802.0,0.7658]
[1645837364618,0.00140828,39811.0,39803.0,0.3]
[1645837364818,0.00035212,39805.0,39803.0,0.3]
[1645837365072,0.00035212,39805.0,39801.0,0.426657]
[1645837365270,0.00035212,39805.0,39802.0,0.7658]
[1645837365672,0.21866856,39809.0,39801.0,0.426657]
[1645837365873,0.21866856,39809.0,39801.0,0.42062983]
[1645837366077,0.00035212,39805.0,39801.0,0.12062983]
[1645837366874,0.21866856,39809.0,39801.0,0.12062983]
[1645837367177,0.00035212,39805.0,39802.0,0.3]
[1645837367374,0.00035212,39805.0,39803.0,0.7658]
[1645837367875,0.00140828,39811.0,39804.0,2.33163905]
[1645837367876,1.04e-05,39811.0,39804.0,2.33163905]
[1645837368075,0.71088182,39814.0,39806.0,0.7658]
[1645837368279,0.49911605,39814.0,39812.0,0.916505]
[1645837368476,0.12237405,39814.0,39813.0,1.86562]
[1645837368924,0.0043,39826.0,39815.0,0.7658]
[1645837369124,0.0043,39826.0,39817.0,0.7658]
[1645837369326,0.0043,39826.0,39818.0,1.62833]
[1645837370023,0.22461217,39822.0,39818.0,1.06186662]
[1645837370222,0.19961217,39822.0,39818.0,1.06186662]
[1645837370424,0.19461217,39822.0,39818.0,1.06186662]
[1645837370622,0.19461217,39822.0,39818.0,1.11466662]
[1645837371224,0.19461217,39822.0,39818.0,0.30256662]
[1645837371623,0.0043,39826.0,39818.0,0.30256662]
[1645837372022,0.00034775,39822.0,39818.0,0.30256662]
[1645837372224,0.00034775,39822.0,39818.0,1.06836662]
[1645837372655,0.00034775,39822.0,39818.0,1.06936662]
[1645837372860,0.0011,39824.0,39818.0,1.06936662]
[1645837373058,0.0011,39824.0,39819.0,0.125589]
[1645837373357,0.0011,39824.0,39820.0,0.81228747]
[1645837373358,0.00034775,39822.0,39820.0,0.81228747]
[1645837373555,0.00034775,39822.0,39821.0,2.0328]
[1645837373756,0.00034775,39822.0,39821.0,1.267]
[1645837373960,0.00034775,39822.0,39821.0,2.0828]
[1645837374157,0.0011,39824.0,39821.0,1.267]
[1645837374359,0.00010485,39823.0,39821.0,1.267]
[1645837375362,0.0011,39824.0,39821.0,1.267]
[1645837375560,0.0011,39824.0,39821.0,2.145593]
[1645837375561,0.00120485,39824.0,39821.0,2.145593]
[1645837375759,0.00120485,39824.0,39821.0,2.191893]
[1645837376613,0.0011,39824.0,39821.0,1.426093]
[1645837376810,0.00144749,39824.0,39821.0,1.427093]
[1645837377209,0.00144749,39824.0,39821.0,1.3643]
[1645837377410,0.00144749,39824.0,39821.0,1.427094]
[1645837377809,0.0011,39824.0,39821.0,1.427094]
[1645837378009,0.0011,39824.0,39821.0,1.426094]
[1645837378212,0.0011,39824.0,39822.0,0.00037062]
[1645837378409,0.0043,39826.0,39822.0,0.00037062]
[1645837378410,0.0014,39826.0,39822.0,0.00037062]
[1645837378610,0.0008,39828.0,39823.0,0.45]
[1645837378811,0.0008,39828.0,39822.0,0.30037062]
[1645837379410,0.0008,39828.0,39823.0,0.2962]
[1645837379610,0.0008,39828.0,39824.0,0.3]
[1645837379810,0.0008,39828.0,39824.0,0.3463]
[1645837380471,0.00090457,39828.0,39826.0,0.2499]
[1645837380664,0.00090457,39828.0,39827.0,0.3463]
[1645837380869,0.00090457,39828.0,39827.0,2.379]
[1645837381166,0.001,39833.0,39828.0,1.6158]
[1645837381363,0.001,39833.0,39830.0,0.7658]
[1645837381566,0.001,39833.0,39831.0,0.8121]
[1645837381766,0.001,39833.0,39832.0,0.0463]
[1645837381965,0.001,39833.0,39832.0,0.8121]
[1645837382163,0.001,39833.0,39832.0,1.1121]
[1645837382363,0.001,39833.0,39832.0,0.8121]
[1645837382565,0.001,39833.0,39832.0,1.1121]
[1645837382964,0.001,39833.0,39832.0,0.8121]
[1645837383364,0.0035,39835.0,39834.0,0.7658]
[1645837383565,0.0035,39835.0,39834.0,1.1121]
[1645837383815,0.0035,39835.0,39834.0,0.8121]
[1645837384011,0.0035,39835.0,39834.0,0.0463]
[1645837384620,0.0032,39835.0,39834.0,0.3463]
[1645837384912,0.0032,39835.0,39834.0,1.1121]
[1645837385113,0.0021,39836.0,39835.0,0.85]
[1645837385315,0.00220452,39836.0,39835.0,1.9621]
[1645837385514,0.00220452,39836.0,39835.0,1.3119]
[1645837385718,0.00151802,39842.0,39835.0,1.3119]
[1645837385719,0.00151802,39842.0,39838.0,0.87512]
[1645837386020,0.0011,39843.0,39842.0,0.79092]
[1645837386220,0.0022,39850.0,39843.0,0.85]
[1645837386418,0.0022,39850.0,39848.0,0.79092]
[1645837386618,0.0022,39850.0,39849.0,1.3119]
[1645837386819,0.0022,39850.0,39849.0,0.8121]
[1645837387020,0.0022,39850.0,39849.0,0.0463]
[1645837387464,0.13889999,39847.0,39846.0,0.125498]
[1645837387663,0.13889999,39847.0,39846.0,0.5]
[1645837388063,0.13889999,39847.0,39843.0,0.07933]
[1645837388664,0.13889999,39847.0,39843.0,0.08033]
[1645837389263,0.19053757,39844.0,39843.0,0.08033]
[1645837390066,0.19053757,39844.0,39843.0,0.07933]
[1645837390868,0.29053757,39844.0,39843.0,0.03133]
[1645837391068,0.85,39843.0,39834.0,0.00018664]
[1645837391514,0.1,39845.0,39834.0,0.00018664]
[1645837392010,0.14892999,39847.0,39834.0,0.00018664]
[1645837392213,0.17570055,39842.0,39834.0,0.00018664]
[1645837392810,0.17670055,39842.0,39834.0,0.00018664]
[1645837393412,0.17670055,39842.0,39832.0,0.00018609]
[1645837394011,0.17570055,39842.0,39832.0,0.06297009]
[1645837394212,0.00034706,39844.0,39834.0,0.7658]
[1645837394413,0.00034706,39844.0,39835.0,1.1121]
[1645837394612,0.00034706,39844.0,39837.0,0.7658]
[1645837394813,0.00034706,39844.0,39838.0,0.3463]
[1645837395264,0.00034706,39844.0,39838.0,0.0463]
[1645837395862,0.45960343,39847.0,39838.0,0.0463]
[1645837396060,0.00034708,39844.0,39838.0,0.0463]
[1645837396661,0.00034708,39844.0,39839.0,0.062772]
[1645837397062,0.35960343,39847.0,39839.0,0.062772]
[1645837397261,0.13889999,39847.0,39839.0,0.062772]
[1645837397662,0.13889999,39847.0,39840.0,0.3]
[1645837398462,0.00034743,39845.0,39840.0,0.3]
[1645837398713,0.00034743,39845.0,39840.0,0.301]
[1645837398914,0.00034743,39845.0,39840.0,1.0668]
[1645837399114,0.00034743,39845.0,39843.0,0.0999]
[1645837399517,0.13889999,39847.0,39843.0,0.0999]
[1645837399816,0.00034743,39844.0,39843.0,0.225424]
[1645837400018,0.00034743,39844.0,39841.0,0.72513272]
[1645837400216,0.00034743,39844.0,39842.0,0.75296]
[1645837400414,0.00034743,39844.0,39843.0,0.3]
[1645837400816,0.00134743,39844.0,39843.0,0.3]
[1645837401014,0.001,39844.0,39843.0,0.3]
[1645837401215,0.001,39844.0,39843.0,0.425524]
[1645837401819,0.001,39844.0,39843.0,0.125524]
[1645837402218,0.00010474,39845.0,39843.0,0.175524]
[1645837402461,0.00010474,39845.0,39843.0,0.725524]
[1645837402864,0.00010474,39845.0,39843.0,0.625524]
[1645837403064,0.13889999,39847.0,39845.0,0.00039238]
[1645837403461,9.782e-05,39846.0,39845.0,0.00039238]
[1645837404263,0.13889999,39847.0,39845.0,0.00039238]
[1645837404461,0.13899781,39847.0,39845.0,0.00039238]
[1645837405463,0.3,39846.0,39845.0,1.238e-05]
[1645837405669,0.4,39846.0,39845.0,1.238e-05]
[1645837405866,0.1,39846.0,39845.0,1.238e-05]
[1645837406719,0.13889999,39847.0,39845.0,1.238e-05]
[1645837407113,0.13924742,39847.0,39845.0,1.238e-05]
[1645837407514,4.762e-05,39844.0,39838.0,0.062775]
[1645837408215,0.00039504,39844.0,39838.0,0.062775]
[1645837408816,0.00039504,39844.0,39838.0,0.063775]
[1645837409018,4.762e-05,39844.0,39838.0,0.063775]
[1645837409316,0.00039504,39844.0,39838.0,0.063775]
[1645837409522,0.00039504,39844.0,39838.0,0.001]
[1645837409961,0.00039504,39844.0,39834.0,0.121552]
[1645837410366,4.762e-05,39844.0,39834.0,0.121552]
[1645837410764,4.762e-05,39844.0,39835.0,0.05]
[1645837411863,0.10004762,39844.0,39835.0,0.05]
[1645837412063,4.762e-05,39844.0,39835.0,0.05]
[1645837412262,4.762e-05,39844.0,39834.0,0.121552]
[1645837412462,0.44403958,39847.0,39834.0,0.121552]
[1645837412863,0.44403958,39847.0,39834.0,0.122552]
[1645837413064,0.2248809,39841.0,39834.0,0.122552]
[1645837413465,0.2198809,39841.0,39834.0,0.122552]
[1645837414111,0.2198809,39841.0,39834.0,0.121552]
[1645837414410,0.1332809,39841.0,39834.0,0.121552]
[1645837414810,0.1332809,39841.0,39834.0,0.122552]
[1645837415410,0.4,39840.0,39834.0,0.122552]
[1645837415611,0.4,39840.0,39834.0,0.001]
[1645837415814,0.3,39840.0,39834.0,0.001]
[1645837416012,0.1,39835.0,39834.0,0.001]
[1645837416411,0.33719699,39835.0,39822.0,0.5]
[1645837416812,0.1,39834.0,39829.0,0.001]
[1645837418267,0.1,39834.0,39823.0,0.062797]
[1645837419565,0.18252457,39829.0,39823.0,0.062797]
[1645837419766,0.3,39833.0,39823.0,0.062797]
[1645837419966,0.1,39834.0,39823.0,0.062797]
[1645837420370,0.1,39831.0,39821.0,0.00045459]
[1645837420570,0.1,39822.0,39821.0,0.00045459]
[1645837420971,0.20836191,39822.0,39821.0,0.00045459]
[1645837421222,0.30836191,39822.0,39818.0,0.002]
[1645837421426,0.1,39821.0,39818.0,0.002]
[1645837421623,0.20836191,39822.0,39818.0,0.002]
[1645837421624,0.30836191,39822.0,39818.0,0.002]
[1645837422024,0.30836191,39822.0,39810.0,0.062823]
[1645837422526,0.30836191,39822.0,39818.0,0.00045021]
[1645837423025,0.1,39819.0,39818.0,2.1e-07]
[1645837423630,0.01004,39821.0,39805.0,0.364833]
[1645837424126,0.11004,39827.0,39805.0,0.362833]
[1645837424326,0.21811423,39820.0,39806.0,0.3]
[1645837424725,0.21811423,39820.0,39807.0,0.05]
[1645837424971,0.21811423,39820.0,39809.0,0.12564]
[1645837425172,0.21811423,39820.0,39809.0,0.17564]
[1645837425374,0.8268,39826.0,39812.0,0.062819]
[1645837426472,0.7268,39826.0,39812.0,0.062819]
[1645837426872,0.1,39824.0,39812.0,0.062819]
[1645837427275,0.01,39819.0,39812.0,0.062819]
[1645837427472,0.01,39819.0,39816.0,0.00046646]
[1645837428274,0.01,39819.0,39809.0,0.17564]
[1645837428718,0.01,39819.0,39816.0,0.00046646]
[1645837429519,0.01,39819.0,39812.0,0.062819]
[1645837429917,0.01,39819.0,39816.0,0.00046646]
[1645837430118,0.00093291,39813.0,39812.0,0.062819]
[1645837434868,0.00293291,39813.0,39812.0,0.062819]
[1645837436071,0.00093291,39813.0,39812.0,0.062819]
[1645837436922,0.00093291,39813.0,39812.0,0.063819]
[1645837437825,0.00093291,39813.0,39812.0,0.363819]
[1645837438024,0.00093291,39813.0,39812.0,0.362819]
[1645837438223,0.00093291,39813.0,39812.0,0.36303523]
[1645837438624,0.00093291,39813.0,39812.0,0.06303523]
[1645837439026,0.00093291,39813.0,39812.0,0.06403523]
[1645837440272,0.00093291,39813.0,39812.0,0.06303523]
[1645837440972,0.00093291,39813.0,39812.0,0.06403523]
[1645837442173,0.00093291,39813.0,39812.0,0.06303523]
[1645837442974,0.00093291,39813.0,39812.0,0.06403523]
[1645837443824,0.00093291,39813.0,39812.0,0.00121623]
[1645837444025,0.37682191,39813.0,39812.0,0.00121623]
[1645837444227,0.37682191,39813.0,39812.0,0.00021623]
[1645837444423,0.00093291,39813.0,39812.0,0.00021623]
[1645837446428,0.37682191,39813.0,39812.0,0.00021623]
[1645837446630,0.00093291,39813.0,39812.0,0.00021623]
[1645837447032,0.15,39810.0,39802.0,0.198496]
[1645837447229,0.575889,39812.0,39796.0,0.01004]
[1645837447230,0.375889,39809.0,39796.0,0.01004]
[1645837447472,0.1,39805.0,39796.0,0.01004]
[1645837447771,0.2,39807.0,39793.0,0.0999]
[1645837447772,0.1,39806.0,39793.0,0.062855]
[1645837447971,0.15,39808.0,39793.0,0.062855]
[1645837447972,0.1,39808.0,39793.0,0.062855]
[1645837448168,0.1,39808.0,39794.0,0.3]
[1645837448368,0.0463,39809.0,39794.0,0.3]
[1645837448569,0.0463,39809.0,39796.0,0.125676]
[1645837448769,0.0463,39809.0,39797.0,0.3]
[1645837449272,0.7243,39810.0,39795.0,0.11004]
[1645837449572,0.7243,39810.0,39795.0,0.06004]
[1645837449767,0.7243,39810.0,39795.0,0.20984]
[1645837449970,0.7243,39810.0,39798.0,0.125675]
[1645837450168,0.9579,39812.0,39799.0,0.01004]
[1645837450370,0.9579,39812.0,39798.0,0.125675]
[1645837451070,0.9579,39812.0,39799.0,0.32018969]
[1645837451071,0.7224,39812.0,39799.0,0.32018969]
[1645837451326,0.001,39812.0,39800.0,0.01004]
[1645837451525,0.001,39812.0,39801.0,0.0463]
[1645837451726,0.001,39812.0,39803.0,0.00046628]
[1645837451922,0.001,39812.0,39804.0,0.135684]
[1645837452125,0.001,39812.0,39805.0,0.05]
[1645837452322,0.00093291,39813.0,39806.0,0.01004]
[1645837452926,0.00093291,39813.0,39807.0,0.125643]
[1645837452927,0.00193291,39813.0,39807.0,0.125643]
[1645837453123,0.00193291,39813.0,39807.0,0.175643]
[1645837453324,0.00193291,39813.0,39807.0,0.225643]
[1645837453523,0.01,39819.0,39807.0,1.075643]
[1645837453723,0.01,39819.0,39807.0,0.225643]
[1645837453924,0.01,39819.0,39808.0,0.0004505]
[1645837454825,0.01,39819.0,39808.0,0.001]
[1645837455475,0.01,39819.0,39810.0,0.062821]
[1645837456884,0.01,39819.0,39811.0,0.0463]
[1645837457279,0.01,39819.0,39811.0,0.0963]
[1645837457681,0.01,39819.0,39816.0,0.02512]
[1645837457880,0.00029918,39820.0,39819.0,1.64092]
[1645837458078,0.00029918,39820.0,39819.0,1.68722]
[1645837458277,3.32240721,39845.0,39822.0,0.125578]
[1645837458278,0.2325,39840.0,39822.0,0.125578]
[1645837458578,0.2325,39840.0,39824.0,0.02512]
[1645837458820,0.2325,39840.0,39825.0,0.0463]
[1645837459020,0.2325,39840.0,39826.0,0.3]
[1645837459220,0.2325,39840.0,39829.0,0.062786]
[1645837460021,0.02557199,39828.0,39827.0,0.0463]
[1645837460822,0.31415943,39837.0,39829.0,0.062792]
[1645837461222,0.09714,39837.0,39829.0,0.062792]
[1645837462474,0.00010433,39835.0,39830.0,0.425578]
[1645837462671,0.00010433,39835.0,39830.0,0.125578]
[1645837463072,0.00010433,39835.0,39830.0,0.425578]
[1645837463272,0.09714,39837.0,39830.0,0.425578]
[1645837463471,0.09714,39837.0,39830.0,0.125578]
[1645837463672,0.00010433,39834.0,39830.0,0.125578]
[1645837463871,0.00010433,39834.0,39831.0,0.3]
[1645837464076,0.00041726,39840.0,39835.0,0.79092]
[1645837464274,0.00041726,39840.0,39839.0,0.02512]
[1645837464475,0.00041726,39840.0,39839.0,0.37142]
[1645837464672,0.0022,39850.0,39839.0,0.0963]
[1645837464877,0.0022,39850.0,39846.0,0.0999]
[1645837465077,0.0022,39850.0,39847.0,0.75288]
[1645837465078,0.17692231,39848.0,39847.0,0.75288]
[1645837465272,0.17692231,39848.0,39847.0,0.45318]
[1645837465674,0.55281131,39848.0,39847.0,0.33180609]
[1645837465875,0.47692231,39848.0,39847.0,0.33180609]
[1645837466316,0.17692231,39848.0,39847.0,0.33180609]
[1645837466517,0.17691231,39848.0,39847.0,0.33180609]
[1645837469019,0.17891231,39848.0,39847.0,0.33180609]
[1645837469823,0.85,39847.0,39838.0,0.062788]
[1645837470071,0.3,39846.0,39838.0,0.062788]
[1645837470473,0.85,39847.0,39838.0,0.062788]
[1645837470671,0.23184868,39839.0,39838.0,0.062788]
[1645837472375,0.23184868,39839.0,39832.0,0.062795]
[1645837472376,0.53184868,39839.0,39832.0,0.062795]
[1645837472974,0.53284868,39839.0,39827.0,0.001]
[1645837473174,0.53284868,39839.0,39828.0,0.00043253]
[1645837473376,0.85,39838.0,39823.0,0.23414501]
[1645837473577,0.3,39837.0,39823.0,0.23414501]
[1645837474030,0.23188444,39827.0,39823.0,0.23414501]
[1645837474227,0.23188444,39827.0,39825.0,0.062805]
[1645837474427,0.1,39842.0,39825.0,0.062805]
[1645837474428,0.3,39840.0,39825.0,0.062805]
[1645837474628,0.794,39843.0,39826.0,0.1]
[1645837474825,0.3,39842.0,39823.0,0.23414501]
[1645837475026,0.001,39832.0,39825.0,0.101]
[1645837475226,0.001,39832.0,39825.0,0.001]
[1645837475532,0.001,39832.0,39830.0,0.062794]
[1645837476129,9.476e-05,39835.0,39830.0,0.062794]
[1645837476527,0.23095928,39839.0,39830.0,0.062794]
[1645837476727,9.476e-05,39835.0,39830.0,0.062794]
[1645837476928,0.00109476,39835.0,39830.0,0.062794]
[1645837477564,0.22705404,39839.0,39830.0,0.062794]
[1645837478067,0.22705404,39839.0,39830.0,0.069994]
[1645837478264,0.22705404,39839.0,39830.0,0.064994]
[1645837478666,0.3,39838.0,39830.0,0.064994]
[1645837479266,0.00010414,39836.0,39830.0,0.064994]
[1645837479464,0.17243642,39832.0,39830.0,0.064994]
[1645837480867,0.17243642,39832.0,39830.0,0.0072]
[1645837481067,0.17543642,39832.0,39830.0,0.0072]
[1645837481517,0.17043642,39832.0,39830.0,0.0072]
[1645837482116,0.16743642,39832.0,39830.0,0.0072]
[1645837483621,0.375889,39831.0,39830.0,0.0072]
[1645837483819,0.16743642,39832.0,39830.0,0.0072]
[1645837484018,0.16743642,39832.0,39821.0,0.062814]
[1645837484218,0.16743642,39832.0,39829.0,0.00042017]
[1645837485080,0.16943642,39832.0,39829.0,0.00042018]
[1645837486080,0.16943642,39832.0,39825.0,0.125603]
[1645837486281,0.16743642,39832.0,39825.0,0.125603]
[1645837486581,0.18468049,39826.0,39825.0,0.125603]
[1645837486782,8.727e-05,39834.0,39825.0,0.125603]
[1645837486983,0.002,39832.0,39825.0,0.125603]
[1645837487582,0.002,39832.0,39827.0,0.00042247]
[1645837488183,0.00029087,39834.0,39827.0,0.00042247]
[1645837488485,0.00029087,39834.0,39825.0,0.125603]
[1645837488722,0.20045465,39830.0,39825.0,0.125603]
[1645837488920,0.20045465,39830.0,39829.0,0.00043925]
[1645837489722,0.20045465,39830.0,39825.0,0.125603]
[1645837490123,0.25076674,39822.0,39818.0,0.3]
[1645837490324,0.25076674,39822.0,39817.0,0.425627]
[1645837490923,0.25076674,39822.0,39817.0,0.426627]
[1645837491525,0.25076674,39822.0,39818.0,0.062807]
[1645837491724,0.25076674,39822.0,39819.0,0.3]
[1645837492666,0.25076674,39822.0,39819.0,0.412797]
[1645837492872,0.25076674,39822.0,39819.0,0.462797]
[1645837493068,8.753e-05,39834.0,39820.0,0.9499]
[1645837493268,8.753e-05,39834.0,39825.0,0.062796]
[1645837493466,0.232,39837.0,39825.0,0.062796]
[1645837493669,8.753e-05,39834.0,39825.0,0.062796]
[1645837494667,0.232,39837.0,39825.0,0.062796]
[1645837494868,0.00029184,39834.0,39826.0,0.30044926]
[1645837495069,0.00029184,39834.0,39826.0,0.00044926]
[1645837495268,0.00029184,39834.0,39826.0,0.30044926]
[1645837495669,0.16686325,39837.0,39826.0,0.30044926]
[1645837495868,0.16686325,39837.0,39826.0,0.3]
[1645837496070,0.00034796,39834.0,39827.0,0.0999]
[1645837496524,0.00034796,39834.0,39828.0,0.3]
[1645837497324,0.75706577,39846.0,39832.0,0.062778]
[1645837497524,0.72543595,39846.0,39833.0,0.3463]
[1645837497926,0.21176577,39845.0,39833.0,0.3463]
[1645837498125,0.21176577,39845.0,39833.0,0.0463]
[1645837498726,0.1774285,39838.0,39833.0,0.0463]
[1645837498929,0.21176577,39844.0,39833.0,0.0463]
[1645837499326,0.21376577,39845.0,39833.0,0.0463]
[1645837499526,0.21376577,39845.0,39834.0,0.3]
[1645837499727,0.00034725,39840.0,39834.0,0.3]
[1645837499984,0.00034725,39840.0,39833.0,0.3]
[1645837500586,0.18022778,39844.0,39832.0,0.062778]
[1645837500785,0.39199355,39844.0,39833.0,0.3]
[1645837501085,0.39199355,39844.0,39833.0,0.301]
[1645837501086,0.00034725,39838.0,39833.0,0.301]
[1645837501286,0.00034725,39838.0,39833.0,0.001]
[1645837501884,0.0013888,39844.0,39833.0,0.001]
[1645837502086,0.002,39845.0,39833.0,0.001]
[1645837502286,0.00034725,39837.0,39833.0,0.001]